Cogmind - Beta 15 @@@ ROGUE MODE // 2025.08.25 @ 11:30:44 Player: TapeIsSticky Result: Self-destructed Performance ------------- Evolutions (4) 2000 Regions Visited (8) 1600 Robots Destroyed (44) 220 Value Destroyed (1040) 1040 Prototype IDs (234) 4680 Alien Tech Used (0) 0 Bonus (4158) 4158 TOTAL SCORE: 13698 Bonus ------- Follower Combat Kills 558 Registered with UFD 300 Met Data Miner 300 Used Data Conduit 3000 Cogmind --------- Core Integrity 808/850 Matter 275/300 Energy 210/210 System Corruption 0% Temperature Cool (0) Movement Treading (162) Location -6/Data Miner Parts ------- > --- POWER (2) -------- Light Angular Momentum Engine Light Fission Core > --- PROPULSION (4) --- Light Treads (fused) Light Treads (fused) Light Treads Armored Treads > --- UTILITY (6) ------ Advanced Heat Sink Large Storage Unit Deep Structural Scanner Advanced Sensor Array Advanced Signal Interpreter Hardened Medium Armor Plating > --- WEAPON (3) ------- Heavy Assault Rifle Minigun Magnetic Acceleration Cannon > --- INVENTORY (15) --- Neutrino Core Scrap Suit Advanced Sensor Array IFF Parser Experimental Terrain Scan Processor Kinecellerator Enhanced Scrap Shield Mapping Drone Bay (3/3) Rainbow Chip Improved Grenade Launcher CPS Tube (2) Botcube Peak State ------------ > --- POWER ------------ Light Angular Momentum Engine Light Fission Core > --- PROPULSION ------- Light Treads Light Treads Light Treads Armored Treads > --- UTILITY ---------- Advanced Heat Sink Large Storage Unit Deep Structural Scanner Advanced Sensor Array Advanced Signal Interpreter Hardened Medium Armor Plating > --- WEAPON ----------- Heavy Assault Rifle Minigun Magnetic Acceleration Cannon > --- INVENTORY -------- Neutrino Core Scrap Suit Advanced Sensor Array IFF Parser Experimental Terrain Scan Processor Kinecellerator Enhanced Scrap Shield Mapping Drone Bay Rainbow Chip Improved Grenade Launcher CPS Tube Botcube Botcube [Rating: 58] Favorites ----------- Power Ion Engine Engine Ion Engine Power Core Light Fission Core Propulsion Light Treads Treads Light Treads Utility Large Storage Unit Device IFF Parser Storage Large Storage Unit Processor Advanced Signal Interpreter Protection Scrap Shield Weapon Heavy Assault Rifle Energy Gun EM Shotgun Ballistic Gun Heavy Assault Rifle Ballistic Cannon Magnetic Acceleration Cannon Launcher EMP Blaster Build | -11 -10 -10 -9 -9 -6 -6 -6 -6 ------- Run | Yrd Mat Sub Rec Scr Fac Low Low Dat Slots Evolved 8 | . . . . . 8 . . . Power 1 | . . . . . 1 . . . Propulsion 2 | . . . . . 2 . . . Utility 4 | . . . . . 4 . . . Weapon 1 | . . . . . 1 . . . Parts Attached 46 | 7 6 11 1 8 13 . . . Power 8 | 1 2 2 . 1 2 . . . Engine 7 | 1 2 2 . 1 1 . . . Core 1 | . . . . . 1 . . . Reactor . | . . . . . . . . . Propulsion 7 | 2 1 1 1 . 2 . . . Treads 7 | 2 1 1 1 . 2 . . . Leg . | . . . . . . . . . Wheel . | . . . . . . . . . Hover . | . . . . . . . . . Flight . | . . . . . . . . . Utility 15 | 2 1 2 . 3 7 . . . Device 7 | 1 . . . 2 4 . . . Storage 3 | 1 1 . . 1 . . . . Processor 2 | . . . . . 2 . . . Hackware . | . . . . . . . . . Protection 3 | . . 2 . . 1 . . . Artifact . | . . . . . . . . . Weapon 16 | 2 2 6 . 4 2 . . . Energy Gun 4 | . . 4 . . . . . . Energy Cannon . | . . . . . . . . . Ballistic Gun 9 | 2 2 1 . 3 1 . . . Ballistic Cannon 1 | . . . . . 1 . . . Launcher 2 | . . 1 . 1 . . . . Special Weapon . | . . . . . . . . . Impact Weapon . | . . . . . . . . . Slashing Weapon . | . . . . . . . . . Piercing Weapon . | . . . . . . . . . Special Melee Weapon . | . . . . . . . . . Unidentified Prototypes . | . . . . . . . . . Corrupted Parts 1 | . . 1 . . . . . . System Corruption 9 | . . 9 . . . . . . Parts Lost 3 | . . 3 . . . . . . Power 1 | . . 1 . . . . . . Propulsion 1 | . . 1 . . . . . . Utility . | . . . . . . . . . Weapon 1 | . . 1 . . . . . . Highest Loss Streak 1 | . . 1 . . . . . . To Critical Strikes . | . . . . . . . . . Average Backups 8 | 2 13 6 4 8 10 11 11 11 Power . | . 1 . . . . 1 1 1 Propulsion 1 | . 3 2 1 1 . . . . Utility 3 | . 2 . 1 4 6 7 8 8 Weapon 2 | . 5 3 2 1 1 1 1 1 Tool/Special . | . . . . . . . . . Unused Backups 49 | . 6 12 . 14 5 1 . 11 Power 9 | . . 4 . 2 1 1 . 1 Propulsion 4 | . 1 1 . 1 . . . 1 Utility 21 | . 1 4 . 7 3 . . 6 Weapon 13 | . 4 3 . 3 1 . . 2 Tool/Special 2 | . . . . 1 . . . 1 Average Slot Usage (%) 85 | . 99 85 83 78 94 100 100 100 Engine 11 | . 14 13 14 9 11 6 6 6 Treads 27 | . 28 25 28 28 25 26 26 26 Device 8 | . 14 2 . 8 19 20 20 20 Storage 7 | . 14 2 . 10 6 6 6 6 Protection 5 | . . 10 14 1 3 6 6 6 Energy Gun 6 | . . 18 13 . . . . . Ballistic Gun 15 | . 27 8 13 17 16 13 13 13 Launcher 1 | . . . . 1 . . . . Peak Build Rating 58 | 7 11 15 15 24 57 58 58 58 Average Rating 18 | 6 8 11 14 15 48 57 58 57 On Entrance 26 | . 7 11 15 9 23 57 58 58 Naked Turns . | . . . . . . . . . Heaviest Build 63 | 15 52 50 31 36 63 61 61 61 Greatest Support 80 | 40 40 40 40 40 80 80 80 80 Greatest Overweight (x) 1 | 1 1 1 . . . . . . Average Overweight (x) . | . . . . . . . . . Largest Inventory Capacity 20 | 8 20 20 5 15 15 15 15 15 Average Capacity 11 | 7 17 8 5 12 15 15 15 15 Most Carried 20 | 4 20 20 5 15 15 15 15 15 Average Carried 10 | 2 13 7 4 10 13 14 15 14 Final Capacity 20 | 8 20 5 5 15 15 15 15 15 Final Carried 20 | 4 20 5 5 15 15 15 15 14 Class Distribution -------------------- 82% | Mutant 11% | Skirmisher 6% | Subdweller-Mutant Dominant Class ---------------- Mutant | -10/Materials Mutant | -10/Subcaves Subdweller-Mutant | -9/Recycling Mutant | -9/Scraptown Skirmisher | -6/Factory Skirmisher | -6/Lower Caves Skirmisher | -6/Lower Caves Skirmisher | -6/Data Miner Resources | -11 -10 -10 -9 -9 -6 -6 -6 -6 ----------- Run | Yrd Mat Sub Rec Scr Fac Low Low Dat Matter Collected 2314 | 450 525 419 55 218 203 230 52 162 Remotely . | . . . . . . . . . Salvage Created 1855 | 251 406 569 106 . 74 348 101 . Parts 103 | 20 32 33 8 . . 4 6 . Haulers Intercepted 2 | . 2 . . . . . . . Recyclers Shooed 1 | . 1 . . . . . . . Parts Field Recycled . | . . . . . . . . . Retrieved Matter . | . . . . . . . . . Parts Self-Destructed 32 | . . 16 . . . 6 10 . Prevented . | . . . . . . . . . Kills | -11 -10 -10 -9 -9 -6 -6 -6 -6 ------- Run | Yrd Mat Sub Rec Scr Fac Low Low Dat Combat Hostiles Destroyed 24 | . 9 11 2 . . . 2 . Guns 21 | . 9 9 2 . . . 1 . Cannons 1 | . . . . . . . 1 . Classes Destroyed 15 | 3 6 2 1 . . 1 1 1 Worker 2 | 1 1 . . . . . . . Builder 1 | . 1 . . . . . . . Tunneler 7 | 7 . . . . . . . . Hauler 2 | . 2 . . . . . . . Recycler 2 | 1 . . . . 1 . . . Operator 1 | . 1 . . . . . . . Turret 2 | . . 2 . . . . . . Watcher 2 | . 2 . . . . . . . Swarmer 6 | . 6 . . . . . . . Grunt 3 | . 3 . . . . . . . Sentry 3 | . . . 2 . . . 1 . Hunter 1 | . . . . . . . 1 . Subdweller 11 | . . 11 . . . . . . Botcube 1 | . . . . . . . . 1 Decomposer 2 | . . . . . . 1 1 . Packrat 3 | . . . . . . 3 . . Samaritan 4 | . . . . . . 4 . . Best Kill Streak 3 | 3 3 2 1 . 1 . 1 1 Combat Bots Only 3 | . 3 2 1 . . . 1 . Max Kills in Single Turn 1 | 1 1 1 1 . 1 1 1 1 Gunslinging . | . . . . . . . . . Exploded . | . . . . . . . . . Melee . | . . . . . . . . . Uniques/NPCs Destroyed 1 | . . . . . . . . 1 Data Miner (-6/Data Miner) Combat | -11 -10 -10 -9 -9 -6 -6 -6 -6 -------- Run | Yrd Mat Sub Rec Scr Fac Low Low Dat Hostile Shots Fired 187 | . 39 108 8 . . . 27 5 Missed 63 | . 11 37 1 . . . 10 4 Hits 124 | . 28 71 7 . . . 17 1 Projectile 124 | . 28 71 7 . . . 17 1 Critical Strikes 1 | . . . 1 . . . . . Damage Taken 1660 | . 275 932 104 60 . . 246 43 Core 176 | . 43 71 . 20 . . 42 . Absorbed by Shields . | . . . . . . . . . Regen/Repaired (Parts) 113 | . 113 . . . . . . . Core Remaining (%) 73 | 100 . . . 46 . . . . Volleys Fired 212 | 30 44 79 6 . 11 22 4 16 Largest 3 | 2 2 2 2 . 3 3 3 3 Hottest 93 | 40 46 90 93 . 68 92 92 92 Shots Fired 410 | 60 88 129 12 . 17 50 12 42 Gun 349 | 60 88 118 12 . 9 28 8 26 Cannon 50 | . . . . . 8 22 4 16 Launcher 11 | . . 11 . . . . . . Special . | . . . . . . . . . Kinetic 308 | 60 88 33 6 . 17 50 12 42 Thermal 11 | . . 5 6 . . . . . Explosive 11 | . . 11 . . . . . . Electromagnetic 80 | . . 80 . . . . . . Robot Hit Streak 20 | 6 11 20 5 . 6 15 7 10 Robot Miss Streak 7 | 5 7 2 1 . 2 1 1 3 Penetration Max . | . . . . . . . . . Secondary Targets 2 | . 1 1 . . . . . . Max Gunslinging Chain 1 | . 1 1 . . . . . . Shots Hit Robots 232 | 29 48 68 8 . 10 32 9 28 Core Hits 111 | 10 25 41 3 . 3 14 5 10 Critical Kills . | . . . . . . . . . Critical Parts Destroyed . | . . . . . . . . . Critical Strikes 2 | . . . . . 1 1 . . Blast 2 | . . . . . 1 1 . . Melee Attacks . | . . . . . . . . . Impact . | . . . . . . . . . Slashing . | . . . . . . . . . Piercing . | . . . . . . . . . Sneak Attacks . | . . . . . . . . . Combat Hostiles . | . . . . . . . . . Follow-up Attacks . | . . . . . . . . . Damage Inflicted 4238 | 364 837 1099 184 . 244 717 175 618 Guns 2906 | 364 649 948 169 . 74 303 84 315 Cannons 926 | . . . . . 154 414 69 289 Explosions 256 | . 108 148 . . . . . . Melee . | . . . . . . . . . Ramming 150 | . 80 3 15 . 16 . 22 14 Kinetic 3092 | 364 649 292 85 . 228 717 153 604 Thermal 84 | . . . 84 . . . . . Explosive 256 | . 108 148 . . . . . . Electromagnetic 656 | . . 656 . . . . . . Impact . | . . . . . . . . . Slashing . | . . . . . . . . . Piercing . | . . . . . . . . . Highest Corruption 9 | . . 9 9 9 . . . . Average Corruption 9 | . . 9 9 9 . . . . Corruption Purged . | . . . . . . . . . Corruption Blocked . | . . . . . . . . . Effects 110 | . . 29 22 59 . . . . Message Errors 27 | . . 5 9 13 . . . . Matter Fused 23 | . . 6 3 14 . . . . Heat Flow Errors 18 | . . 6 2 10 . . . . Energy Discharges 11 | . . 5 2 4 . . . . Parts Fused 2 | . . . . 2 . . . . Data Loss (minor) 18 | . . 4 3 11 . . . . Data Loss (major) 6 | . . 1 2 3 . . . . Alerts 5 | . . 2 1 2 . . . . Overload Shots . | . . . . . . . . . Overflow Damage 126 | . 16 . . . 4 98 8 . Projectiles 102 | . . . . . 4 98 . . Explosions 16 | . 16 . . . . . . . Melee 8 | . . . . . . . 8 . Knockbacks 8 | . 2 . 1 . 2 1 2 . Impact 3 | . 2 . 1 . . . . . Kinetic 5 | . . . . . 2 1 2 . Secondary . | . . . . . . . . . Self-Inflicted Damage 4 | . . 4 . . . . . . Shots 1 | . . 1 . . . . . . Rammed 20 | . 14 1 1 . 3 . 1 . Targets Rammed 23 | . 15 1 1 . 3 . 2 1 Kicked . | . . . . . . . . . Crushed 3 | . 1 . . . . . 1 1 Highest Temperature 287 | . 2 287 254 260 . . . . Average Temperature 96 | . 1 122 85 95 . . . . Received Heat Transfer 474 | . 84 324 54 . . . 12 . Effects 1 | . . . 1 . . . . . Energy Bleed 1 | . . . 1 . . . . . Siege Activations . | . . . . . . . . . Martial Activations . | . . . . . . . . . Shielding Activations . | . . . . . . . . . Robots Disrupted . | . . . . . . . . . Combat Hostiles . | . . . . . . . . . Robots Corrupted 2 | . . 2 . . . . . . Combat Hostiles 2 | . . 2 . . . . . . Parts Fried 4 | . . 4 . . . . . . Impact Corruptions 3 | . . . . . . . 3 . Robots Melted . | . . . . . . . . . Combat Hostiles . | . . . . . . . . . Parts Melted . | . . . . . . . . . Heat Transferred 100 | . . . 100 . . . . . Parts Sabotaged . | . . . . . . . . . Parts Stolen . | . . . . . . . . . Parts Stripped . | . . . . . . . . . Power Chain Reactions . | . . . . . . . . . Alert | -11 -10 -10 -9 -9 -6 -6 -6 -6 ------- Run | Yrd Mat Sub Rec Scr Fac Low Low Dat Maximum Alert Level . | . . . . . . . . . Low Security (%) 100 | 100 100 . 100 . 100 . . . Level 1 . | . . . . . . . . . Level 2 . | . . . . . . . . . Level 3 . | . . . . . . . . . Level 4 . | . . . . . . . . . Level 5 . | . . . . . . . . . High Security . | . . . . . . . . . Max Security . | . . . . . . . . . Peak Influence 84 | 15 84 . 78 . 79 . . . Initial 74 | . . . 74 . . . . . Average 19 | 1 19 . 33 . 13 . . . Influence Increases 1095 | 45 339 205 172 . 171 50 88 25 Destroy 0b10 Robot/C 460 | . 180 40 40 . 80 40 60 20 Destroy 0b10 Robot/NC 85 | 45 35 . . . 5 . . . Destroy Leader 78 | . 48 . . . 20 . 10 . Allied During Kill 60 | . . . . . 27 10 18 5 Successful Hack 53 | . 20 . 12 . 21 . . . Select Force Hacks 120 | . . . 120 . . . . . Disable Machine 45 | . 30 . . . 15 . . . Destroy Structure 14 | . 11 . . . 3 . . . Lose Combat Pursuer 180 | . 15 165 . . . . . . Influence Decreases 1095 | 45 330 59 327 . 149 72 88 25 Entered New Map 95 | . . 5 81 . . 9 . . Time Decay 990 | 45 330 44 246 . 149 63 88 25 Lost Part 10 | . . 10 . . . . . . Squads Dispatched 4 | . 1 . . . 3 . . . Investigation 2 | . . . . . 2 . . . Extermination 1 | . . . . . 1 . . . Reinforcement 1 | . 1 . . . . . . . Assault . | . . . . . . . . . Garrison . | . . . . . . . . . Intercept . | . . . . . . . . . Searches Triggered . | . . . . . . . . . Construction Impeded . | . . . . . . . . . Haulers Reinforced . | . . . . . . . . . Active Scanning Responses . | . . . . . . . . . Cargo Convoy Interrupts . | . . . . . . . . . Stealth | -11 -10 -10 -9 -9 -6 -6 -6 -6 --------- Run | Yrd Mat Sub Rec Scr Fac Low Low Dat Distress Signals 1 | . 1 . . . . . . . Communications Jammed . | . . . . . . . . . Distress Signals . | . . . . . . . . . Times Spotted 44 | . 18 17 1 . 3 . 3 2 Peak Tracking Total 5 | . 5 2 1 . 1 . 2 3 Tactical Retreats 5 | . 1 4 . . . . . . Traps | -11 -10 -10 -9 -9 -6 -6 -6 -6 ------- Run | Yrd Mat Sub Rec Scr Fac Low Low Dat Traps Triggered 2 | . . 1 . 1 . . . . Indirectly . | . . . . . . . . . Trap Hack Attempts . | . . . . . . . . . Triggered . | . . . . . . . . . Disarmed . | . . . . . . . . . Reprogrammed . | . . . . . . . . . Reused . | . . . . . . . . . Traps Extracted . | . . . . . . . . . Installed 1 | . . . . 1 . . . . Triggered . | . . . . . . . . . Most Traps Carried 1 | . . 1 1 1 . . . . Machines | -11 -10 -10 -9 -9 -6 -6 -6 -6 ---------- Run | Yrd Mat Sub Rec Scr Fac Low Low Dat Machines Disabled 6 | . 2 3 . . 1 . . . Max in Single Turn 2 | . 1 2 . . 1 . . . Machines Repaired . | . . . . . . . . . Machines Dismantled . | . . . . . . . . . Machines Sabotaged . | . . . . . . . . . Overloaded Fab Kills . | . . . . . . . . . Hacking | -11 -10 -10 -9 -9 -6 -6 -6 -6 --------- Run | Yrd Mat Sub Rec Scr Fac Low Low Dat Machines Accessed 33 | . 9 2 11 3 3 1 1 3 Terminals 16 | . 7 . 6 . 3 . . . Fabricators . | . . . . . . . . . Repair Stations 1 | . 1 . . . . . . . Recycling Units 6 | . 1 . 5 . . . . . Scanalyzers . | . . . . . . . . . Garrison Access . | . . . . . . . . . Total Hacks 102 | . 23 2 21 24 9 1 1 21 Successful 74 | . 11 2 10 24 4 1 1 21 Failed 28 | . 12 . 11 . 5 . . . Catastrophic 2 | . . . . . 2 . . . Database Lockouts . | . . . . . . . . . Manual 48 | . 19 . 21 . 8 . . . Terminals 39 | . 17 . 13 . 9 . . . Fabricators . | . . . . . . . . . Repair Stations 4 | . 4 . . . . . . . Recycling Units 10 | . 2 . 8 . . . . . Scanalyzers . | . . . . . . . . . Garrison Access . | . . . . . . . . . Terminal Hacks 52 | . . 2 . 24 3 1 1 21 Record 26 | . . . . 23 1 . . 2 Part Schematic 11 | . . . . . 1 . . 10 Robot Schematic 6 | . . . . . . . . 6 Prototype ID Bank 3 | . . . . . . . . 3 Open Door 3 | . . 1 . . . 1 1 . Fabricator Index 1 | . . . . . 1 . . . Proto ID Catalog 2 | . . 1 . 1 . . . . Fabricator Hacks . | . . . . . . . . . Repair Station Hacks 4 | . 4 . . . . . . . Scan Component 2 | . 2 . . . . . . . Repair 2 | . 2 . . . . . . . Recycling Unit Hacks . | . . . . . . . . . Scanalyzer . | . . . . . . . . . Garrison Access Hacks . | . . . . . . . . . Unauthorized Hacks 17 | . 7 . 9 . 1 . . . Terminals 13 | . 7 . 5 . 1 . . . Botnet 2 | . 1 . . . 1 . . . Skim 11 | . 6 . 5 . . . . . Fabricators . | . . . . . . . . . Repair Stations . | . . . . . . . . . Recycling Units 4 | . . . 4 . . . . . Tunnel 4 | . . . 4 . . . . . Scanalyzers . | . . . . . . . . . Garrison Access . | . . . . . . . . . Data Cores Recovered 1 | . 1 . . . . . . . Used . | . . . . . . . . . Hacking Detections 16 | . 8 . 5 . 3 . . . Full Trace Events 8 | . 3 . 3 . 2 . . . Feedback Events . | . . . . . . . . . Feedback Blocked . | . . . . . . . . . Robot Schematics Acquired 6 | . . . . . . . . 6 Robots Built . | . . . . . . . . . Authchips . | . . . . . . . . . Time . | . . . . . . . . . Total Robot Build Rating . | . . . . . . . . . Part Schematics Acquired 11 | . . . . . 1 . . 10 Parts Built . | . . . . . . . . . Authchips . | . . . . . . . . . Time . | . . . . . . . . . Total Part Build Rating . | . . . . . . . . . Parts Repaired 2 | . 2 . . . . . . . Time 52 | . 52 . . . . . . . Parts Recycled . | . . . . . . . . . Recycled Matter . | . . . . . . . . . Retrieved Matter . | . . . . . . . . . Retrieved Components . | . . . . . . . . . Parts Scanalyzed . | . . . . . . . . . Part Schematics Acquired . | . . . . . . . . . Parts Damaged . | . . . . . . . . . Bothacking | -11 -10 -10 -9 -9 -6 -6 -6 -6 ------------ Run | Yrd Mat Sub Rec Scr Fac Low Low Dat Used RIF Installer . | . . . . . . . . . Robots Hacked . | . . . . . . . . . Non-combat . | . . . . . . . . . Combat . | . . . . . . . . . Robot Hacks Applied . | . . . . . . . . . Relay Couplers Released . | . . . . . . . . . Fabnet Peak Effective % . | . . . . . . . . . Robots Rewired . | . . . . . . . . . Allies Hacked . | . . . . . . . . . Hacks Repelled . | . . . . . . . . . Allies | -11 -10 -10 -9 -9 -6 -6 -6 -6 -------- Run | Yrd Mat Sub Rec Scr Fac Low Low Dat Total Allies 3 | . . . . 2 . . . 1 Largest Group 2 | . . . . 2 2 2 2 2 Highest-Rated Group 149 | . . . . 128 133 131 131 149 Highest-Rated Ally 80 | . . . . 75 80 78 78 78 Total Orders 5 | . . . . 2 2 . . 1 STAY 2 | . . . . . 1 . . 1 FOLLOW 1 | . . . . . 1 . . . EXPLORE 1 | . . . . 1 . . . . RETURN 1 | . . . . 1 . . . . Ally Attacks 36 | . . . . . 11 4 2 19 Total Damage 1329 | . . . . . 619 54 81 575 Kills 11 | . . . . . 4 2 1 4 Allies Corrupted . | . . . . . . . . . Allies Melted . | . . . . . . . . . Intel | -11 -10 -10 -9 -9 -6 -6 -6 -6 ------- Run | Yrd Mat Sub Rec Scr Fac Low Low Dat Active Infowar (turns) 11552 | 195 2553 1406 . 4831 730 965 494 378 Optics 248 | . . . . . 248 . . . Sensors 2059 | . . . . . 222 965 494 378 IFF 5338 | . . . . 4831 507 . . . Structural 2564 | . . . . . 727 965 494 378 Seismic 4154 | 195 2553 1406 . . . . . . Robot Analysis Total 151 | . . . . . . . . 151 Derelict Logs Recovered 7 | . . 3 . 2 . 1 1 . Drone Launches 3 | . . . . 3 . . . . Drone Recoveries 3 | . . . . 3 . . . . Exploration | -11 -10 -10 -9 -9 -6 -6 -6 -6 ------------- Run | Yrd Mat Sub Rec Scr Fac Low Low Dat Turns Passed 21878 | 305 2553 6811 656 8986 730 965 494 378 Spaces Moved 11464 | 134 927 3204 395 5381 408 543 280 192 Core 115 | 13 . . . 102 . . . . Treads 11349 | 121 927 3204 395 5279 408 543 280 192 Legs . | . . . . . . . . . Wheels . | . . . . . . . . . Hover . | . . . . . . . . . Flight . | . . . . . . . . . Fastest Speed 50 | 50 160 160 160 50 162 162 162 162 Average Speed 171 | 150 227 183 160 157 162 162 162 162 Slowest Speed 240 | 160 240 240 160 160 162 162 162 162 Overloaded Moves . | . . . . . . . . . Propulsion Burnouts . | . . . . . . . . . Robots Hopped . | . . . . . . . . . Potential Cave-ins . | . . . . . . . . . Cave-ins Triggered . | . . . . . . . . . Exploration Rate (%) 66 | 7 98 98 94 95 11 75 42 79 Regions Visited 8 Branch Regions 6 Pre-discovered Areas 35 | . . 2 4 5 . . . 24 Known Exits Taken 3 | . . . . . 1 1 1 . Unknown Exits Taken 5 | 1 1 1 1 1 . . . . Scrap Searched 14 | . . 8 . 4 . 1 1 . Spaces Dug 3 | . . . . . 1 2 . . Terrain Destroyed 60 | . 12 39 . . 1 6 1 1 Melee . | . . . . . . . . . Projectile 9 | . . . . . 1 6 1 1 AOE 51 | . 12 39 . . . . . . Terrain Rammed . | . . . . . . . . . Walls Destroyed . | . . . . . . . . . Machines Disabled . | . . . . . . . . . Actions | -11 -10 -10 -9 -9 -6 -6 -6 -6 --------- Run | Yrd Mat Sub Rec Scr Fac Low Low Dat Total 13347 | 174 1269 4016 409 5885 460 594 311 229 Wait 1428 | . 248 678 3 417 15 22 26 19 Move 11456 | 133 926 3203 394 5380 407 542 279 192 Hop . | . . . . . . . . . Pick Up 85 | 4 20 11 . 40 7 3 . . Fast Attach 27 | 7 1 8 . 7 4 . . . Attach 11 | . . 2 . 3 6 . . . Detach 3 | . . . 1 2 . . . . Swap 17 | . 6 6 1 1 3 . . . Drop 74 | . 9 19 3 34 4 4 . 1 Fire 212 | 30 44 79 6 . 11 22 4 16 Melee . | . . . . . . . . . Ram . | . . . . . . . . . Kick . | . . . . . . . . . Crush 23 | . 15 1 1 . 3 . 2 1 Escape Stasis . | . . . . . . . . . Rewire 1 | . . . . . . 1 . . Trap 1 | . . . . 1 . . . . Miscellaneous 9 | . . 9 . . . . . . Route ------- -11/Scrapyard -10/Materials (discovered 5 exits: [*Mat x3] / [*Min] / *Sub) -10/Subcaves (discovered 3 exits: [*Mat x2] / *Rec) -9/Recycling (discovered 2 exits: [*Fac] / *Scr) -9/Scraptown (discovered 2 exits: *Fac x2) -6/Factory (discovered 4 exits: Fac x2 / *Low x2) -6/Lower Caves -6/Lower Caves (discovered 2 exits: Fac / *Dat) -6/Data Miner (discovered 1 exit: [*Pro]) History --------- Turn | Location | Event 3 | -11/Scrapyard | Discovered new exit (range 16) 306 | -11/Scrapyard | Entered Materials 307 | -10/Materials | Build established: Mutant 791 | -10/Materials | Discovered new exit (range 7) 1391 | -10/Materials | Discovered new exit (range 16) 1396 | -10/Materials | Discovered new exit (range 13) 1618 | -10/Materials | Repaired Assault Rifle 1645 | -10/Materials | Repaired Lgt. Treads 1871 | -10/Materials | Discovered new exit (range 13) 2278 | -10/Materials | Discovered new exit (range 8) 2859 | -10/Materials | Entered Subcaves 3040 | -10/Subcaves | Learned Materials trap positions 4555 | -10/Subcaves | Discovered new exit (range 11) 4687 | -10/Subcaves | Visited 4L-MR0's lab 5066 | -10/Subcaves | Learned location of Mines (-10) 6908 | -10/Subcaves | Discovered new exit (range 12) 8099 | -10/Subcaves | Discovered new exit (range 14) 9076 | -10/Subcaves | Found Rainbow Chip 9229 | -10/Subcaves | Build established: Subdweller-Mutant 9670 | -10/Subcaves | Entered Recycling 10075 | -9/Recycling | Discovered new exit (range 16) 10285 | -9/Recycling | Scanned before Scraplab entrance 10309 | -9/Recycling | Entered Scraplab 10322 | -9/Recycling | Discovered new exit (range 3) 10326 | -9/Recycling | Entered Scraptown 10483 | -9/Scraptown | Visited UFD Registry 10483 | -9/Scraptown | Registered with UFD as "Dualtalker" 10520 | -9/Scraptown | Visited Abandonware Association 10590 | -9/Scraptown | Build established: Mutant 10613 | -9/Scraptown | Visited Chapter 10 10658 | -9/Scraptown | Visited Junk Repository 10682 | -9/Scraptown | Visited Scrapoid Research Area 10707 | -9/Scraptown | Visited Science Guys 10766 | -9/Scraptown | Visited Cartography Club 10851 | -9/Scraptown | Visited CR-KLE's Repair Center 10872 | -9/Scraptown | Visited Symbiants 10882 | -9/Scraptown | Visited Cyclists 10931 | -9/Scraptown | Visited Fellowship of the Rings 10954 | -9/Scraptown | Visited The Evicted 10981 | -9/Scraptown | Visited Awakened 11018 | -9/Scraptown | Visited Assassins FH 11130 | -9/Scraptown | Scanned Subdweller tech in exchange for log data 11134 | -9/Scraptown | Learned location of 1 exit from Research 11139 | -9/Scraptown | Learned location of 1 exit from Factory 11157 | -9/Scraptown | Discovered new exit (range 13) 11209 | -9/Scraptown | Guru changed UFD alias to "Bladeskull" 11487 | -9/Scraptown | Delivered Scrap Shield to a Scientist 11772 | -9/Scraptown | Visited Botcube Research 11783 | -9/Scraptown | Warned about trapping Scraptown 11891 | -9/Scraptown | Core integrity fell below 50% 12023 | -9/Scraptown | Discovered new exit (range 3) 12028 | -9/Scraptown | System corruption cleaned by C-Scrubber 13271 | -9/Scraptown | Visited Infowarlord's Domain 13408 | -9/Scraptown | Found Deep Structural Scanner 13414 | -9/Scraptown | Learned location of Upper Caves (-5) 13414 | -9/Scraptown | Learned location of Extension (-6) 13414 | -9/Scraptown | Learned location of Quarantine (-2) 13414 | -9/Scraptown | Learned 12 Research zone layouts 13414 | -9/Scraptown | Learned 4 Mines zone layouts 13414 | -9/Scraptown | Learned 4 Recycling zone layouts 13414 | -9/Scraptown | Learned 16 Lower Caves zone layouts 13414 | -9/Scraptown | Learned 20 Lower Caves zone layouts 13414 | -9/Scraptown | Learned 24 Upper Caves zone layouts 13414 | -9/Scraptown | Learned 16 Proximity Caves zone layouts 13414 | -9/Scraptown | Learned 24 Proximity Caves zone layouts 13414 | -9/Scraptown | Learned Research emergency access door positions 13414 | -9/Scraptown | Learned location of 1 exit from Research 13414 | -9/Scraptown | Learned location of 3 exits from Upper Caves 13851 | -9/Scraptown | Found Exp. Terrain Scan Processor 13882 | -9/Scraptown | Visited Scrap Suit Storage 13892 | -9/Scraptown | Found Scrap Suit 14130 | -9/Scraptown | Found Lrg. Botcube 14144 | -9/Scraptown | Found Botcube 14152 | -9/Scraptown | Found Botcube 14765 | -9/Scraptown | Learned abandonware demo "SHUTEYE.EXE" 14765 | -9/Scraptown | Learned abandonware demo "REBOOT5.EXE" 15530 | -9/Scraptown | Found Scrap Suit 15811 | -9/Scraptown | Lrg. Botcube activated 15821 | -9/Scraptown | Lrg. Botcube completed mutation into legged form, armed with 1 gun, 1 cannon. 15999 | -9/Scraptown | Found Lrg. Botcube 16781 | -9/Scraptown | Found Scrap Suit 18700 | -9/Scraptown | Lrg. Botcube activated 18726 | -9/Scraptown | Lrg. Botcube completed mutation into legged form, armed with 2 guns. 19312 | -9/Scraptown | Entered Factory 19312 | -6/Factory | Accompanied by 2 allies 19312 | -6/Factory | Evolved 8 slots: Power x1, Propulsion x2, Utility x4, Weapon x1 19313 | -6/Factory | Identified exit to Factory 19314 | -6/Factory | Identified exit to Lower Caves 19616 | -6/Factory | Build established: Skirmisher 19681 | -6/Factory | Discovered exit to Factory (range 22) 20012 | -6/Factory | Discovered exit to Lower Caves (range 10) 20042 | -6/Factory | Entered Lower Caves 20042 | -6/Lower Caves | Accompanied by 2 allies 20043 | -6/Lower Caves | Identified exit to Lower Caves 20044 | -6/Lower Caves | UFD Scientist delivered a prototype 20051 | -6/Lower Caves | Found Prototype Protection 20622 | -6/Lower Caves | Learned Factory emergency access door positions 21007 | -6/Lower Caves | Entered another Lower Caves area 21007 | -6/Lower Caves | Accompanied by 2 allies 21008 | -6/Lower Caves | Identified exit to Data Miner 21119 | -6/Lower Caves | Attracted the attention of an 0b10 checkpoint 21148 | -6/Lower Caves | Learned Factory trap positions 21364 | -6/Lower Caves | Encountered a Warlord checkpoint 21501 | -6/Lower Caves | Entered Data Miner 21501 | -6/Data Miner | Accompanied by 2 allies 21501 | -6/Data Miner | Discovered new exit (range 6) 21532 | -6/Data Miner | Met Data Miner 21578 | -6/Data Miner | Acquired the access code to Warlord's prototype stash 21578 | -6/Data Miner | Learned location of Section 7 (-2) 21594 | -6/Data Miner | Received God Mode back door access code from Data Miner 21618 | -6/Data Miner | Destroyed Data Miner 21618 | -6/Data Miner | Interfaced with the Data Conduit 21726 | -6/Data Miner | Murdered Large Mutated Botcube 21726 | -6/Data Miner | Destroyed Large Mutated Botcube 21766 | -6/Data Miner | Botcube activated 21784 | -6/Data Miner | Botcube completed mutation into legged form (unarmed). 21879 | -6/Data Miner | Self-destructed Last Messages --------------- Plasma Cannon, EM Shotgun, Ovr. Titanium Leg. 21639_ Large Mutated Botcube overheating. 21641_ Destroyed Ovr. Titanium Leg. 21641_ Destroyed EM Shotgun. 21642_ Large Mutated Botcube overheating. 21644_ Enhanced Grunt destroyed. 21687_ Acquired 8 matter. 21688_ Large Mutated Botcube collects matter. 21689_ Acquired 2 matter. 21692_ Acquired 8 matter. 21694_ Acquired 66 matter. 21695_ Acquired 64 matter. 21722_ Destroyed Scrap Suit. 21726_ Large Mutated Botcube destroyed. 21732_ Acquired 3 matter. 21738_ Acquired 11 matter. 21764_ Dropped Botcube. 21766_ Botcube begins transforming into Mutated Botcube. 21784_ Botcube completes transformation. Map ----- +----------------------------------------------------+ | | | | | | | | | | | | | | | | | | | | | | | | | | | | | ???????????????????????????????????????????????? | | ??????????????????????????????????##########???? | | ???#########################################???? | | ???#########################################???? | | ???#########################################???? | | ???################################### ######## | | ???##"""""""""""""""###### # # # ### ######## | | ???#""""""""" " """"" ; # # # ## < ######### | | ###""""""""" % ######## | | ###"""""" M ### | | ###""""""" ### | | ###"""""" @ ### | | ###""""" M #### | | ###"""" "" """"""""""""""""######## | | ###"""""" " """"###################### | | ####""""""" """""######################## | | #####""""""" "############################ | | ############"## "########################???? | | ############"### "##########?????????????????? | | ############"### "########???????????????????? | | ?###########"## "####???????????????????????? | | ????????####"## "#####??????????????????????? | | ????????""##"# "#####??????????????????????? | | ????????""##"### "#####??????????????????????? | | ???????"""##"### "#####??????????????????????? | | ???????"""##"### ""#######???????????????????? | | ??????""""##"## ""#######???????????????????? | | ??????###"##"#"X ""#######???????????????????? | | ??????###"""""" "#######???????????????????? | | ??????####""""" X"""""###???????????????????? | | ??????######"#"X "##"####???????????????????? | | ??????######"## X""""####???????????????????? | | ??????######"### "##"####???????????????????? | | ???????#####"##########"####???????????????????? | | ????????####"##########"####???????????????????? | | ???????????#"##########"####???????????????????? | +----------------------------------------------------+ Best States ------------- Heat Dissipation 56 Energy Generation 31 Energy Capacity 325 Matter Stores 300 Matter Capacity 300 Sight Range 22 Robot Scan Range 16 Terrain Scan Density 10 Armor Coverage 800 Evasion (%) 50 Recoil Reduction 4 Kinecelleration 30 Item Schematics ----------------- Huge Storage Unit | -6/Factory | Hacked Combat Drone Bay | -6/Data Miner | Free Lgt. Regenerative Plating | -6/Data Miner | Free Enh. Flexi-carbon Leg | -6/Data Miner | Free Imp. Thermal Defense Suite | -6/Data Miner | Free Imp. KE Penetrator | -6/Data Miner | Free Myomer Leg | -6/Data Miner | Free Imp. Point Defense System | -6/Data Miner | Free Phase Gun | -6/Data Miner | Free Gamma Bomb Array | -6/Data Miner | Free Impulse Thruster Array | -6/Data Miner | Free Robot Schematics ------------------ R-10 Processor | -6/Data Miner | Free H-66 Slayer | -6/Data Miner | Free L-41 Fighter | -6/Data Miner | Free Y-54 Guardian | -6/Data Miner | Free Y-64 Sentinel | -6/Data Miner | Free G-50 Soldier | -6/Data Miner | Free Fabricated ------------ Nothing Repaired ---------- Assault Rifle | 46% | -10/Materials Lgt. Treads | 57% | -10/Materials Alien Tech Used ----------------- None Achievements -------------- None Challenges ------------ None Game ------ Seed UltimateCannonMace Manual? 0 Play Time 01:09:25 Cumulative 180.8 hours Start 2025.08.24 @ 14:59:13 End 2025.08.25 @ 11:30:44 Sessions 9 Manual Loads 0 Difficulty Rogue Special Mode None Game No. 99 Rogue 99 Adventurer 0 Explorer 0 Win Type - Total 19 Types 9/1/5/1/0/1/1/1/0/0 Lore% 70 Gallery% 63 Achievement% 70 Wizard Run 0 Options --------- Layout 1 ASCII 0 Keyboard 0 Movement Arrows Keybinds 0 Fullscreen 2 Font 24/Tamsyn Map View 50x35 Zoom Use 0% Tactical HUD 1 Map Filters NONE Filters NONE Steam 1 RUN: 80debae9-59e7-4792-9078-25d3daa127f1